{"text_format":"3","workbook":"xlsx","n_sheets":2,"sheets":["Протокол 2-3 кл ","Протокол 4-5 кл"],"not_rendered":{"defined_names":3},"read":"whole","date_system":"1900"}

{"sheet":"Протокол 2-3 кл ","index":0,"n_rows":23,"n_cols":14,"rows_kept":23,"merged":[[0,2,0,6],[0,11,0,13]]}
[null,null,"Протокол  результатов Республиканской экологической олимпиады\n                              для младших школьников   2-3 классы"]
["№","ФИО","Школа","Класс","Район","Руководитель","оценка за тест","Баллы за практику 1","Баллы за практику 1 20","Баллы за практику 2 20","Баллы за практику 2","оценка за практику","итого","место"]
[1,"Краснов Станислав ","МБУ ДО \"ДЭБЦ\" ЕМР РТ            МБОУ \"Средняя школа №6\" ЕМР РТ",3,"г.Елабуга","Минахметова Альфия Камилевна (п.д.о.)                                Галанина Тамара Петровна",45,null,10,10,null,{"$f":"SUM(I3:K3)*2","v":40},{"$f":"SUM(G3,L3)","v":85},1]
[2,"Бикмухаметов Амир ","МБОУ \"Школа №55\"",2,"Московский р-н","Григорьева Светлана Викторовна",45,null,10,7,null,34,79,2]
[3,"Шамеев Даниил ","МБОУ \"Гимназия №4\" ЕМР РТ    МБУ ДО \"ДЭБЦ\" ЕМР РТ ",3,"г.Елабуга","Минахметова Альфия Камилевна (п.д.о.)                                 Амирова Разимя Касыймовна",52,null,5,7,null,24,76,3]
[4,"Мифтахов Артём","МБОУ \"СОШ №2\" МО \"ЛМР\" РТ",2,"г.Лениногорск","Есипова Елена Валерьевна",42,null,8,9,null,34,76,3]
[5,"Хасьянов Аяз","МБОУ \"Лицей №116 имени Героя Советского Союза А.С.Умеркина\"",3,"Вахитовский р-н ","Павлова Ольга Владимировна",37,null,10,9,null,38,75,"3, реферат"]
[6,"Федотов Михаил","МБОУ \"Лицей №12\" г.Лениногорска",3,"г.Лениногорск","Ермолаева Надежда Викторовна",41,null,4,8,null,24,65]
[7,"Сабирова  Камила ","МБОУ \"Школа №113\"                МБУДО \"ЦВР\" Ново-Савиновского района г. Казани",3,"Ново-Савиновский р-н","Адамович Марина Анатольевна ",48,null,3,5,null,16,64,"тест"]
[8,"Коптев Алексей","МАОУ \"Гимназия №139 - Центр образования\"",2,"Приволжский р-н","Макарова Марина Николаевна",41,null,3,8,null,22,63]
[9,"Сиземова Александра","МБОУ \"СОШ №11\" ЗМР РТ",2,"г.Зеленодольск","Бакшаева Юлия Константиновна",35,null,4,9,null,26,61,"практика"]
[10,"Богданова Рита","МАОУ «Лицей №146 \"Ресурс\"», МБУДО ЦВР Ново-Савиновского р-на",2,"Ново-Савиновский р-н","Набиуллина Р.А.,    ",44,null,3,5,null,16,60,"реферат"]
[11,"Лаптева Ирина","МБОУ \"Школа №111\"",2,"Советский р-н","Соловьева Елена Игоревна",37,null,6,5,null,22,59]
[12,"Цыбина Ксения","МАОУ «Лицей №146 \"Ресурс\"», МБУДО ЦВР Ново-Савиновского р-на",2,"Ново-Савиновский р-н","Набиуллина Р.А.",38,null,4,6,null,20,58,"реферат"]
[13,"Холоденин Георгий","МБОУ \"Средняя общеобразовательная школа №4\"",2,"г.Чистополь","Мокрушина Наталья Александровна",26,null,8,8,null,32,58,"практика"]
[14,"Шафикова София","МБОУ \"Лицей №116 имени Героя Советского Союза А.С.Умеркина\"",3,"Вахитовский р-н ","Павлова О.В.                        Ершова Т.И.",39,null,3,6,null,18,57,"реферат"]
[15,"Ахметова Зухра"," МБОУ \"Лесхозская СОШ\" Арского МР РТ",3,"Арский р-н, п.Урняк","Зайнуллина А.Т",32,null,5,7,null,24,56,"реферат"]
[16,"Хасанов Амир ","МБОУ \"СОШ №2\" МО \"ЛМР\" РТ",2,"г.Лениногорск","Есипова Елена Валерьевна",33,null,5,6,null,22,55]
[17,"Паршина Станислава","МБОУ \"Школа №113\"                МБУДО \"ЦВР\" Ново-Савиновского района г. Казани",3,"Ново-Савиновский р-н","Паршина Наталья Александровна,",25,null,5,8,null,26,51,"реферат"]
[18,"Корнетов Сергей ","МБОУ \"Лицей № 35\"- ОЦ \"Галактика\"",2,"Приволжский р-н","Князькина Елена Павловна \nЛамзина Ольга Владимировна",32,null,2,7,null,18,50,"реферат"]
[19,"Кашапова Ралина","МБОУ \"Шугуровская СОШ имени В.П.Чкалова\" МО \"ЛМР\" РТ",3,"Лениногорский р-н, с.Шугурово","Гарифуллина Миляуша Анасовна",22,null,7,3,null,20,42]
[20,"Сафина Алсу\n   (Юные исследователи)"," ГБУ \"Нурлатский детский дом\"",5,"Зеленодольский район, с. Нурлаты","Миннуллина Раиса Рашитовна                  Захарова Мария Владимровна",24,0,2,4,null,12,36]
[21,"Наумова Ульяна ","МБОУ \"Средняя общеобразовательная школа №4\"",2,"г.Чистополь","Мокрушина Наталья Александровна",27,null,0,3,null,6,33]

{"sheet":"Протокол 4-5 кл","index":1,"n_rows":20,"n_cols":13,"rows_kept":20,"merged":[[0,2,0,5],[0,10,0,12]]}
["Протокол                                      ",null,"Протокол  результатов Республиканской экологической олимпиады\n                              для младших школьников   4-5 классы"]
["№","ФИО","Школа","Класс","Район","Руководитель","оценки за тест","Баллы за практику 1","Баллы за практику 2","Баллы за практику 2","оценка за практику","итого","место"]
[1,"Шугурова Арина","МБОУ \"Школа №86\", ГДЭБЦ",4,"Советский р-н г.Казани","Зиннурова Светлана Наилевна            Проскурякова Галина Владимировна",57,4,8,null,{"$f":"SUM(H3:I3)*2","v":24},{"$f":"SUM(G3,K3)","v":81},"1, реферат"]
[2,"Хакимуллина Саида","МБОУ \"Школа № 147\"       МБУ ДО «ЦВР» Авиастроительного района",4,"Авиастроительный р-н г.Казани","Черновская Жанна Юрьевна",40,8,8,null,32,72,2]
[3,"Саттарова Сюмбель ","МБОУ \"Лесхозская СОШ\"",4,"Арский р-н, п. Урняк","Губайдуллина Раиля Юсуповна",40,8,7,null,30,70,3]
[4,"Сахибуллина Азалия","МБОУ Высокогорская СОШ №3",5,"Высокогорский район, с. Высокая Гора","Варакина Марина Ивановна ",38,8,8,null,32,70,3]
[5,"Дятлова Аделина   (Юные исследователи)"," ГБУ \"Нурлатский детский дом\"",5,"Зеленодольский район, с. Нурлаты","Миннуллина Раиса Рашитовна                  Захарова Мария Владимровна",38,8,8,null,32,70,3]
[6,"Русакова Анастасия ","МБОУ \"СОШ №69\"",5,"Приволжский р-н г.Казани","Гайнутдинова Зифа Муфасаловна",40,6,8,null,28,68,"тест"]
[7,"Костюк Татьяна","МБОУ \"Лицей №1 ЗМР РТ\"",4,"г.Зеленодольск ","Картавых Р.Х.                          Костюк М.А",33,7,5,null,24,57]
[8,"Егорова Виолетта","МБОУ Ромодановская СОШ",5,"Алексеевский район, село Ромодан","Баршис Елена Анатольевна",40,0,8,null,16,56,"тест"]
[9,"Дубровина Анастасия","МБОУ \"Гимназия №152\"",5,"Кировский р-н г.Казани","Гиниятуллина Светлана Васильевна",34,5,6,null,22,56]
[10,"Галяутдинова Айзиля "," МБОУ «Старо-Иштерякская ООШ» МО ЛМР РТ",5,"Лениногорский район,  с. Старый Иштеряк","Галяутдинова Рушания Котдусовна",30,3,8,null,22,52,"реферат"]
[11,"Григорьев Павел","МБОУ СОШ №9 Бугульминского муниципального района        МБОУ ДО ДЭБЦ",4,"г.Бугульма","Свежинкина Ксения Николаевна                     Григорьева Наталия Ивановна (п.д.о.)",29,3,8,null,22,51,"реферат"]
[12,"Вафина Диана","МБОУ \"Сугушлинская ООШ\"",4,"Лениногорский р-н, с.Сугушла","Гильмутдинова Л.С.",24,4,9,null,26,50,"практика"]
[13,"Мамонова Татьяна                 ","МБОУ \"Гимназия №152\"",5,"Кировский р-н г.Казани","Гиниятуллина Светлана Васильевна",30,5,5,null,20,50]
[14,"Фархутдинова Ильвина","МБОУ \"СОШ №8\" г.Лениногорск",5,"г.Лениногорск ","Кутасова Н.К.",23,4,8,null,24,47]
[15,"Арсентьева Милана \n(Юные исследователи)"," ГБУ \"Нурлатский детский дом\"",5,"Зеленодольский район, с. Нурлаты","Миннуллина Раиса Рашитовна                  Захарова Мария Владимровна",30,1,6,null,14,44]
[16,"Гордобутских Яна","МБОУ \"Лицей № 9 им.А.С.Пушкина ЗМР РТ\"",4,"г.Зеленодольск ","Кирюхина\nНаталья Михайловна\n",23,5,5,null,20,43]
[17,"Невзорова Светлана","МАОУ \"Гимназия №141\", МБУ ДО \"ГДЭБЦ\"",4,"Советский р-н г.Казани","Земскова Галина Руслановна   пдо МБУ ДО «ГДЭБЦ» ",19,5,6,null,22,41,"реферат"]
[18,"Алексеев Азат \n(Юные исследователи)"," ГБУ \"Нурлатский детский дом\"",5,"Зеленодольский район, с. Нурлаты","Миннуллина Раиса Рашитовна                  Захарова Мария Владимровна",22,5,4,null,18,40]